[Event "EWIRCC 2019"]
[Site "Monte-Carlo"]
[Date "2019.11.30"]
[Round "5.1"]
[White "Girya, Olga"]
[Black "Rogule, Laura"]
[Result "0-1"]
[ECO "D36"]
[WhiteElo "2476"]
[BlackElo "2293"]
[Annotator "ChessBase"]
[PlyCount "136"]
[EventDate "2019.11.28"]
[EventType "swiss"]
[EventCountry "MNC"]
[SourceTitle "playchess.com"]
[Source "ChessBase"]
[SourceQuality "1"]
[TimeControl "5400+30"]

1. d4 {[%emt 1:15:12]} d5 {[%emt 1:15:12]} 2. c4 {[%emt 0:00:22]} e6 {[%emt 0:00:21]} 3. Nc3 {[%emt 0:00:21]} Nf6 {[%emt 0:00:23]} 4. cxd5 {[%emt 0:00:21]} exd5 {[%emt 0:00:22]} 5. Bg5 {[%emt 0:00:22]} Be7 {[%emt 0:00:30]} 6. e3 {[%emt 0:00:22]} Nbd7 {[%emt 0:00:29]} 7. Bd3 {[%emt 0:00:29]} c6 {[%emt 0:00:29]} 8. Nf3 {[%emt 0:00:50]} O-O {[%emt 0:00:27]} 9. Qc2 {[%emt 0:00:24]} Re8 {[%emt 0:00:23]} 10. h3 {[%emt 0:00:27]} Nf8 {[%emt 0:01:33]} 11. Bf4 {[%emt 0:00:23]} Bd6 {[%emt 0:02:55]} 12. Bxd6 {[%emt 0:00:23]} Qxd6 {[%emt 0:00:21]} 13. O-O {[%emt 0:00:22]} Be6 {[%emt 0:01:53]} 14. Rab1 {[%emt 0:03:06]} Re7 {[%emt 0:00:52]} 15. b4 {[%emt 0:00:45]} a6 {[%emt 0:03:55]} 16. Rfc1 {[%emt 0:00:28]} N6d7 {[%emt 0:02:40]} 17. a4 {[%emt 0:01:05]} Ng6 {[%emt 0:01:51]} 18. b5 {[%emt 0:01:18]} axb5 {[%emt 0:00:32]} 19. axb5 {[%emt 0:00:21]} c5 {[%emt 0:01:18]} 20. dxc5 {[%emt 0:00:45]} Qxc5 {[%emt 0:00:49]} 21. Qd1 {[%emt 0:01:30]} Qd6 {[%emt 0:00:47]} 22. Bxg6 {[%emt 0:02:40]} hxg6 {[%emt 0:00:30]} 23. Qd4 {[%emt 0:00:21]} Nf6 {[%emt 0:01:07]} 24. b6 {[%emt 0:03:28]} Ra6 {[%emt 0:00:46]} 25. e4 {[%emt 0:00:42]} Qf4 {[%emt 0:00:31]} 26. e5 {[%emt 0:00:21]} Qxd4 {[%emt 0:00:36]} 27. Nxd4 {[%emt 0:00:21]} Nd7 {[%emt 0:00:22]} 28. Ncb5 {[%emt 0:02:02]} Rxb6 {[%emt 0:00:28]} 29. f4 {[%emt 0:02:10]} f6 {[%emt 0:00:59]} 30. Nc7 {[%emt 0:01:17]} Rxb1 {[%emt 0:01:07]} 31. Rxb1 {[%emt 0:00:22]} Nc5 {[%emt 0:00:39]} 32. Ndxe6 {[%emt 0:01:23]} Nxe6 {[%emt 0:00:21]} 33. Nxd5 {[%emt 0:00:57]} Rd7 {[%emt 0:00:21]} 34. Nb6 {[%emt 0:00:21]} Rd4 {[%emt 0:00:49]} 35. exf6 {[%emt 0:00:30]} gxf6 {[%emt 0:00:23]} 36. g3 {[%emt 0:00:35]} Rd3 {[%emt 0:00:34]} 37. Kf2 {[%emt 0:00:31]} Nc5 {[%emt 0:00:31]} 38. Rc1 {[%emt 0:01:05]} Ne4+ {[%emt 0:00:24]} 39. Ke2 {[%emt 0:00:26]} Rxg3 {[%emt 0:00:24]} 40. Rc8+ {[%emt 0:00:21]} Kf7 {[%emt 0:00:33]} 41. Rc7+ {[%emt 0:00:22]} Ke6 {[%emt 0:00:23]} 42. Rxb7 {[%emt 0:00:27]} Rxh3 {[%emt 0:00:23]} 43. Nc4 {[%emt 0:00:34]} Kf5 {[%emt 0:00:30]} 44. Rg7 {[%emt 0:00:22]} Ng3+ {[%emt 0:00:48]} 45. Kf2 {[%emt 0:00:42]} Nh5 {[%emt 0:00:22]} 46. Rf7 {[%emt 0:00:42]} Nxf4 {[%emt 0:00:26]} 47. Ne3+ {[%emt 0:00:24]} Kg5 {[%emt 0:00:32]} 48. Ra7 {[%emt 0:00:32]} f5 {[%emt 0:00:39]} 49. Nc4 {[%emt 0:00:25]} Nd3+ {[%emt 0:00:36]} 50. Kg2 {[%emt 0:00:30]} Rh4 {[%emt 0:00:22]} 51. Nd2 {[%emt 0:00:39]} Rb4 {[%emt 0:00:25]} 52. Nf3+ {[%emt 0:00:29]} Kg4 {[%emt 0:00:29]} 53. Nh2+ {[%emt 0:00:26]} Kf4 {[%emt 0:00:22]} 54. Rd7 {[%emt 0:00:31]} Rb2+ {[%emt 0:00:29]} 55. Kg1 {[%emt 0:00:26]} Nf2 {[%emt 0:00:33]} 56. Rd4+ {[%emt 0:00:35]} Ne4 {[%emt 0:00:25]} 57. Rd8 {[%emt 0:00:32]} g5 {[%emt 0:00:26]} 58. Rd1 {[%emt 0:00:25]} g4 {[%emt 0:00:40]} 59. Rf1+ {[%emt 0:00:25]} Kg5 {[%emt 0:00:22]} 60. Ra1 {[%emt 0:00:25]} Kh4 {[%emt 0:00:57]} 61. Ra8 {[%emt 0:00:35]} Ng3 {[%emt 0:00:37]} 62. Rg8 {[%emt 0:00:46]} Ne2+ {[%emt 0:00:25]} 63. Kg2 {[%emt 0:00:27]} Nf4+ {[%emt 0:00:30]} 64. Kg1 {[%emt 0:00:30]} Nh3+ {[%emt 0:00:27]} 65. Kh1 {[%emt 0:00:33]} Rb1+ {[%emt 0:00:23]} 66. Nf1 {[%emt 0:00:21]} Rxf1+ {[%emt 0:00:23]} 67. Kg2 {[%emt 0:00:21]} Rg1+ {[%emt 0:00:39]} 68. Kh2 {[%emt 0:00:21]} g3+ {[%emt 0:00:21]} 0-1

[Event "EWIRCC 2019"]
[Site "Monte-Carlo"]
[Date "2019.11.30"]
[Round "5.2"]
[White "Muzychuk, Mariya"]
[Black "Daulyte-Cornette, Deimante"]
[Result "1/2-1/2"]
[ECO "B04"]
[WhiteElo "2552"]
[BlackElo "2405"]
[Annotator "ChessBase"]
[PlyCount "63"]
[EventDate "2019.11.28"]
[EventType "swiss"]
[EventCountry "MNC"]
[SourceTitle "playchess.com"]
[Source "ChessBase"]
[SourceQuality "1"]
[TimeControl "5400+30"]

1. e4 {[%emt 1:15:11]} Nf6 {[%emt 1:15:12]} 2. e5 {[%emt 0:00:21]} Nd5 {[%emt 0:00:22]} 3. d4 {[%emt 0:00:20]} d6 {[%emt 0:00:22]} 4. Nf3 {[%emt 0:00:21]} dxe5 {[%emt 0:00:24]} 5. Nxe5 {[%emt 0:00:22]} c6 {[%emt 0:00:21]} 6. Bc4 {[%emt 0:00:43]} Nd7 {[%emt 0:01:09]} 7. O-O {[%emt 0:01:02]} Nxe5 {[%emt 0:00:28]} 8. dxe5 {[%emt 0:00:21]} Bf5 {[%emt 0:00:45]} 9. Qe2 {[%emt 0:00:25]} e6 {[%emt 0:00:28]} 10. Rd1 {[%emt 0:00:53]} Qh4 {[%emt 0:00:29]} 11. Bd3 {[%emt 0:03:28]} Bg4 {[%emt 0:02:35]} 12. f3 {[%emt 0:00:25]} Bc5+ {[%emt 0:00:37]} 13. Kh1 {[%emt 0:00:21]} Bh5 {[%emt 0:01:02]} 14. Nc3 {[%emt 0:01:04]} Nxc3 {[%emt 0:02:33]} 15. bxc3 {[%emt 0:00:21]} O-O {[%emt 0:05:14]} 16. Rb1 {[%emt 0:00:30]} Qe7 {[%emt 0:01:06]} 17. Be3 {[%emt 0:00:45]} Rfd8 {[%emt 0:00:45]} 18. Bxc5 {[%emt 0:04:26]} Qxc5 {[%emt 0:00:22]} 19. Rxb7 {[%emt 0:00:23]} Qxc3 {[%emt 0:02:18]} 20. Rb3 {[%emt 0:04:10]} Qc5 {[%emt 0:00:32]} 21. g4 {[%emt 0:01:52]} Bg6 {[%emt 0:00:25]} 22. Kg2 {[%emt 0:00:22]} a5 {[%emt 0:01:17]} 23. Bxg6 {[%emt 0:00:48]} hxg6 {[%emt 0:00:26]} 24. f4 {[%emt 0:01:44]} Rd5 {[%emt 0:01:15]} 25. Rdd3 {[%emt 0:00:28]} Rad8 {[%emt 0:00:46]} 26. Rbc3 {[%emt 0:00:26]} Qb4 {[%emt 0:00:38]} 27. Kg3 {[%emt 0:00:37]} Qb1 {[%emt 0:01:13]} 28. a3 {[%emt 0:00:54]} Qg1+ {[%emt 0:00:32]} 29. Kf3 {[%emt 0:00:30]} Qh1+ {[%emt 0:00:37]} 30. Kg3 {[%emt 0:00:40]} Qg1+ {[%emt 0:00:21]} 31. Kf3 {[%emt 0:00:21]} Qh1+ {[%emt 0:00:21]} 32. Kg3 1/2-1/2

[Event "EWIRCC 2019"]
[Site "Monte-Carlo"]
[Date "2019.11.30"]
[Round "5.3"]
[White "Batsiashvili, Nino"]
[Black "Zhukova, Natalia"]
[Result "1/2-1/2"]
[ECO "E11"]
[WhiteElo "2422"]
[BlackElo "2323"]
[Annotator "NA"]
[PlyCount "79"]
[EventDate "2019.11.28"]
[EventType "swiss"]
[EventCountry "MNC"]
[SourceTitle "playchess.com"]
[Source "ChessBase"]
[SourceQuality "1"]
[TimeControl "5400+30"]

1. Nf3 {[%emt 1:15:13]} Nf6 {[%emt 1:15:19]} 2. d4 {[%emt 0:00:55]} d5 {[%emt 0:00:28]} 3. c4 {[%emt 0:00:39]} e6 {[%emt 0:00:23]} 4. g3 {[%emt 0:00:32]} Bb4+ {[%emt 0:01:17]} 5. Bd2 {[%emt 0:00:47]} Be7 {[%emt 0:00:22]} 6. Bg2 {[%emt 0:00:28]} O-O {[%emt 0:00:22]} 7. O-O {[%emt 0:00:25]} Nbd7 {[%emt 0:00:44]} 8. Qc2 {[%emt 0:00:54]} Ne4 {[%emt 0:00:22]} 9. Be3 {[%emt 0:01:30]} c6 {[%emt 0:01:02]} 10. Nc3 {[%emt 0:01:36]} f5 {[%emt 0:00:26]} 11. Rad1 {[%emt 0:00:43]} g5 {[%emt 0:01:00]} 12. Nxe4 {[%emt 0:00:31]} fxe4 {[%emt 0:00:22]} 13. Ne1 {[%emt 0:01:10]} h6 {[%emt 0:07:55]} 14. f3 {[%emt 0:00:39]} Nf6 {[%emt 0:00:21]} 15. fxe4 {[%emt 0:00:35]} dxe4 {[%emt 0:00:40]} 16. Bxe4 {[%emt 0:00:47]} Ng4 {[%emt 0:01:08]} 17. Rxf8+ {[%emt 0:01:22]} Qxf8 {[%emt 0:00:28]} 18. Ng2 {[%emt 0:00:48]} e5 {[%emt 0:00:46]} 19. Rf1 {[%emt 0:02:06]} Qg7 {[%emt 0:00:29]} 20. d5 {[%emt 0:00:27]} Nxe3 {[%emt 0:01:07]} 21. Nxe3 {[%emt 0:00:22]} Bc5 {[%emt 0:00:21]} 22. Qd3 {[%emt 0:00:24]} Bh3 {[%emt 0:00:33]} 23. Bg2 {[%emt 0:01:07]} e4 {[%emt 0:03:07]} 24. Qxe4 {[%emt 0:03:27]} Bd7 {[%emt 0:00:21]} 25. Kh1 {[%emt 0:00:21]} Re8 {[%emt 0:00:28]} 26. Nf5 {[%emt 0:00:22]} Rxe4 {[%emt 0:01:20]} 27. Nxg7 {[%emt 0:00:21]} Rxe2 {[%emt 0:00:40]} 28. Nh5 {[%emt 0:00:44]} Bd4 {[%emt 0:00:41]} 29. dxc6 {[%emt 0:01:22]} Bxc6 {[%emt 0:00:37]} 30. Bd5+ {[%emt 0:00:47]} Bxd5+ {[%emt 0:00:32]} 31. cxd5 {[%emt 0:00:21]} Rd2 {[%emt 0:01:32]} 32. Nf6+ {[%emt 0:01:19]} Bxf6 {[%emt 0:00:22]} 33. Rxf6 {[%emt 0:00:20]} Rxd5 {[%emt 0:00:37]} 34. Rxh6 {[%emt 0:00:22]} Kg7 {[%emt 0:00:27]} 35. Re6 {[%emt 0:00:23]} Rd1+ {[%emt 0:00:21]} 36. Kg2 {[%emt 0:00:21]} Rd2+ {[%emt 0:00:21]} 37. Kf3 {[%emt 0:00:34]} Rxb2 {[%emt 0:00:21]} 38. h3 {[%emt 0:00:22]} Rxa2 {[%emt 0:00:33]} 39. Re7+ {[%emt 0:00:45]} Kg6 {[%emt 0:00:25]} 40. Ke4 {[%emt 0:03:49]} 1/2-1/2

[Event "EWIRCC 2019"]
[Site "Monte-Carlo"]
[Date "2019.11.30"]
[Round "5.4"]
[White "Bulmaga, Irina"]
[Black "Worek, Joanna"]
[Result "1-0"]
[ECO "B22"]
[WhiteElo "2435"]
[BlackElo "2316"]
[Annotator "NA"]
[PlyCount "93"]
[EventDate "2019.11.28"]
[EventType "swiss"]
[EventCountry "MNC"]
[SourceTitle "playchess.com"]
[Source "ChessBase"]
[SourceQuality "1"]
[TimeControl "5400+30"]

1. e4 {[%emt 1:15:12]} c5 {[%emt 1:15:11]} 2. Be2 {[%emt 0:00:21]} Nc6 {[%emt 0:00:23]} 3. f4 {[%emt 0:00:22]} g6 {[%emt 0:00:52]} 4. Nf3 {[%emt 0:00:22]} Bg7 {[%emt 0:00:22]} 5. O-O {[%emt 0:00:26]} d6 {[%emt 0:00:28]} 6. c3 {[%emt 0:00:22]} Nf6 {[%emt 0:00:53]} 7. d3 {[%emt 0:00:22]} O-O {[%emt 0:00:39]} 8. Kh1 {[%emt 0:00:22]} b5 {[%emt 0:01:02]} 9. a3 {[%emt 0:00:22]} a5 {[%emt 0:01:03]} 10. Be3 {[%emt 0:00:23]} Rb8 {[%emt 0:01:08]} 11. Nbd2 {[%emt 0:00:23]} b4 {[%emt 0:01:41]} 12. d4 {[%emt 0:00:22]} bxc3 {[%emt 0:00:34]} 13. bxc3 {[%emt 0:00:22]} cxd4 {[%emt 0:00:50]} 14. cxd4 {[%emt 0:00:22]} e5 {[%emt 0:02:14]} 15. fxe5 {[%emt 0:01:14]} dxe5 {[%emt 0:00:44]} 16. d5 {[%emt 0:00:24]} Ne7 {[%emt 0:00:54]} 17. Nxe5 {[%emt 0:03:20]} Nfxd5 {[%emt 0:01:36]} 18. exd5 {[%emt 0:00:24]} Bxe5 {[%emt 0:00:37]} 19. Bg5 {[%emt 0:01:07]} f6 {[%emt 0:02:20]} 20. Bh6 {[%emt 0:00:21]} Rf7 {[%emt 0:01:19]} 21. Bc4 {[%emt 0:04:04]} Nf5 {[%emt 0:02:50]} 22. Bf4 {[%emt 0:01:18]} Bxf4 {[%emt 0:00:21]} 23. Rxf4 {[%emt 0:00:21]} Kg7 {[%emt 0:01:34]} 24. Qf3 {[%emt 0:00:56]} Rb2 {[%emt 0:00:25]} 25. Qc3 {[%emt 0:00:42]} Rb6 {[%emt 0:01:41]} 26. Raf1 {[%emt 0:00:45]} Ba6 {[%emt 0:00:32]} 27. Qxa5 {[%emt 0:01:44]} Bxc4 {[%emt 0:00:38]} 28. Nxc4 {[%emt 0:00:24]} Rd6 {[%emt 0:00:21]} 29. Qxd8 {[%emt 0:01:05]} Rxd8 {[%emt 0:00:21]} 30. Rd1 {[%emt 0:00:52]} Rfd7 {[%emt 0:00:22]} 31. d6 {[%emt 0:00:28]} h5 {[%emt 0:00:26]} 32. a4 {[%emt 0:00:36]} Kf7 {[%emt 0:01:00]} 33. a5 {[%emt 0:00:21]} Rc8 {[%emt 0:00:23]} 34. Kg1 {[%emt 0:00:33]} Rc6 {[%emt 0:00:27]} 35. g3 {[%emt 0:01:01]} Ke6 {[%emt 0:00:49]} 36. Re4+ {[%emt 0:00:23]} Kf7 {[%emt 0:00:21]} 37. Rd2 {[%emt 0:01:58]} Kf8 {[%emt 0:00:45]} 38. Rd3 {[%emt 0:00:30]} Kf7 {[%emt 0:00:20]} 39. h3 {[%emt 0:00:21]} g5 {[%emt 0:00:29]} 40. g4 {[%emt 0:00:51]} hxg4 {[%emt 0:00:21]} 41. hxg4 {[%emt 0:00:20]} Ng7 {[%emt 0:00:28]} 42. Rde3 {[%emt 0:00:45]} Rd8 {[%emt 0:00:35]} 43. Rb3 {[%emt 0:01:19]} Kg6 {[%emt 0:00:25]} 44. Rb6 {[%emt 0:00:35]} Rc5 {[%emt 0:01:03]} 45. a6 {[%emt 0:00:22]} Ne8 {[%emt 0:00:23]} 46. a7 {[%emt 0:00:28]} Rd5 {[%emt 0:00:24]} 47. Rb8 {[%emt 0:00:27]} 1-0

[Event "EWIRCC 2019"]
[Site "Monte-Carlo"]
[Date "2019.11.30"]
[Round "5.5"]
[White "Muzychuk, Anna"]
[Black "Guichard, Pauline"]
[Result "1-0"]
[ECO "C48"]
[WhiteElo "2543"]
[BlackElo "2407"]
[Annotator "ChessBase"]
[PlyCount "53"]
[EventDate "2019.11.28"]
[EventType "swiss"]
[EventCountry "MNC"]
[SourceTitle "playchess.com"]
[Source "ChessBase"]
[SourceQuality "1"]
[TimeControl "5400+30"]

1. e4 {[%emt 1:15:11]} e5 {[%emt 1:15:11]} 2. Nf3 {[%emt 0:00:21]} Nc6 {[%emt 0:00:23]} 3. Bb5 {[%emt 0:00:21]} Nf6 {[%emt 0:00:25]} 4. d3 {[%emt 0:00:35]} Bc5 {[%emt 0:00:24]} 5. O-O {[%emt 0:00:31]} d6 {[%emt 0:00:22]} 6. Nc3 {[%emt 0:00:51]} O-O {[%emt 0:00:41]} 7. Na4 {[%emt 0:00:26]} Bb6 {[%emt 0:00:23]} 8. Nxb6 {[%emt 0:00:32]} axb6 {[%emt 0:00:22]} 9. Re1 {[%emt 0:00:25]} Bd7 {[%emt 0:02:46]} 10. c3 {[%emt 0:00:28]} Ne7 {[%emt 0:00:34]} 11. Bc4 {[%emt 0:00:26]} Ba4 {[%emt 0:00:23]} 12. b3 {[%emt 0:01:06]} Bc6 {[%emt 0:00:40]} 13. d4 {[%emt 0:02:00]} Nxe4 {[%emt 0:04:27]} 14. dxe5 {[%emt 0:00:26]} d5 {[%emt 0:01:09]} 15. Bd3 {[%emt 0:00:29]} Ng6 {[%emt 0:00:50]} 16. Qc2 {[%emt 0:00:51]} Re8 {[%emt 0:02:25]} 17. c4 {[%emt 0:02:07]} Nc5 {[%emt 0:00:29]} 18. Bg5 {[%emt 0:01:00]} Qb8 {[%emt 0:02:05]} 19. Bxg6 {[%emt 0:00:58]} hxg6 {[%emt 0:00:27]} 20. b4 {[%emt 0:00:38]} Ba4 {[%emt 0:04:25]} 21. Qd2 {[%emt 0:01:34]} Ne4 {[%emt 0:00:28]} 22. Qxd5 {[%emt 0:00:23]} Bc6 {[%emt 0:00:35]} 23. Qd4 {[%emt 0:00:21]} Nxg5 {[%emt 0:01:17]} 24. Nxg5 {[%emt 0:00:21]} Qd8 {[%emt 0:00:38]} 25. Qh4 {[%emt 0:00:23]} Qd3 {[%emt 0:00:21]} 26. e6 {[%emt 0:01:07]} Kf8 {[%emt 0:00:38]} 27. e7+ {[%emt 0:00:29]} 1-0

[Event "EWIRCC 2019"]
[Site "Monte-Carlo"]
[Date "2019.11.30"]
[Round "5.6"]
[White "Osmak, Iulija"]
[Black "Kosteniuk, Alexandra"]
[Result "1/2-1/2"]
[ECO "D00"]
[WhiteElo "2401"]
[BlackElo "2483"]
[Annotator "ChessBase"]
[PlyCount "83"]
[EventDate "2019.11.28"]
[EventType "swiss"]
[EventCountry "MNC"]
[SourceTitle "playchess.com"]
[Source "ChessBase"]
[SourceQuality "1"]
[TimeControl "5400+30"]

1. d4 {[%emt 1:15:11]} Nf6 {[%emt 1:15:11]} 2. Bf4 {[%emt 0:00:39]} d5 {[%emt 0:00:23]} 3. e3 {[%emt 0:00:22]} c5 {[%emt 0:00:23]} 4. c3 {[%emt 0:00:22]} Nc6 {[%emt 0:00:29]} 5. Nd2 {[%emt 0:00:23]} Bf5 {[%emt 0:01:43]} 6. Ngf3 {[%emt 0:00:23]} e6 {[%emt 0:00:28]} 7. Nh4 {[%emt 0:00:37]} Bg4 {[%emt 0:00:27]} 8. Qb3 {[%emt 0:01:27]} Qd7 {[%emt 0:00:29]} 9. h3 {[%emt 0:00:28]} Bh5 {[%emt 0:00:21]} 10. g4 {[%emt 0:00:28]} Bg6 {[%emt 0:00:36]} 11. Nxg6 {[%emt 0:00:22]} hxg6 {[%emt 0:00:22]} 12. Be2 {[%emt 0:01:01]} Be7 {[%emt 0:01:15]} 13. h4 {[%emt 0:00:40]} c4 {[%emt 0:02:07]} 14. Qc2 {[%emt 0:01:49]} e5 {[%emt 0:00:33]} 15. dxe5 {[%emt 0:01:03]} Nxg4 {[%emt 0:00:22]} 16. Nf3 {[%emt 0:00:39]} O-O-O {[%emt 0:04:43]} 17. Bf1 {[%emt 0:01:38]} f5 {[%emt 0:02:08]} 18. exf6 {[%emt 0:00:35]} gxf6 {[%emt 0:00:21]} 19. O-O-O {[%emt 0:01:02]} g5 {[%emt 0:01:59]} 20. Bg3 {[%emt 0:00:30]} Nge5 {[%emt 0:01:53]} 21. Nxe5 {[%emt 0:00:50]} fxe5 {[%emt 0:01:45]} 22. Bxc4 {[%emt 0:00:37]} gxh4 {[%emt 0:00:26]} 23. Rxd5 {[%emt 0:00:44]} Qg4 {[%emt 0:00:23]} 24. Be2 {[%emt 0:00:52]} Qe6 {[%emt 0:00:24]} 25. Rxd8+ {[%emt 0:00:55]} Bxd8 {[%emt 0:00:22]} 26. Qe4 {[%emt 0:01:43]} Qf6 {[%emt 0:00:24]} 27. Bh2 {[%emt 0:00:40]} Bc7 {[%emt 0:01:18]} 28. Bg4+ {[%emt 0:00:51]} Kb8 {[%emt 0:00:21]} 29. f3 {[%emt 0:00:31]} Rd8 {[%emt 0:00:33]} 30. Rd1 {[%emt 0:00:40]} Rxd1+ 31. Kxd1 {[%emt 0:00:21]} Qd6+ {[%emt 0:01:13]} 32. Kc2 {[%emt 0:00:38]} Qc5 {[%emt 0:00:35]} 33. Bd7 {[%emt 0:00:55]} Qb5 {[%emt 0:00:27]} 34. Bxc6 {[%emt 0:01:36]} Qe2+ {[%emt 0:00:21]} 35. Kb3 {[%emt 0:00:29]} bxc6 {[%emt 0:00:21]} 36. Qxh4 {[%emt 0:02:58]} Qd1+ {[%emt 0:00:47]} 37. Ka3 {[%emt 0:00:30]} Bd6+ {[%emt 0:00:21]} 38. b4 {[%emt 0:00:21]} Qc1+ {[%emt 0:00:26]} 39. Kb3 {[%emt 0:00:27]} Qd1+ {[%emt 0:00:26]} 40. Ka3 {[%emt 0:00:31]} Qc1+ {[%emt 0:00:44]} 41. Kb3 {[%emt 0:00:21]} Qd1+ {[%emt 0:00:29]} 42. Ka3 {[%emt 0:00:22]} 1/2-1/2

[Event "EWIRCC 2019"]
[Site "Monte-Carlo"]
[Date "2019.11.30"]
[Round "5.7"]
[White "Stefanova, Antoaneta"]
[Black "Kashlinskaya, Alina"]
[Result "1-0"]
[ECO "A07"]
[WhiteElo "2481"]
[BlackElo "2486"]
[Annotator "ChessBase"]
[PlyCount "53"]
[EventDate "2019.11.28"]
[EventType "swiss"]
[EventCountry "MNC"]
[SourceTitle "playchess.com"]
[Source "ChessBase"]
[SourceQuality "1"]
[TimeControl "5400+30"]

1. Nf3 {[%emt 1:15:12]} d5 {[%emt 1:15:13]} 2. g3 {[%emt 0:00:22]} c6 {[%emt 0:00:22]} 3. Bg2 {[%emt 0:00:23]} Bg4 {[%emt 0:00:32]} 4. O-O {[%emt 0:01:12]} Nd7 {[%emt 0:00:23]} 5. d3 {[%emt 0:01:26]} Ngf6 {[%emt 0:00:25]} 6. h3 {[%emt 0:00:49]} Bh5 {[%emt 0:00:28]} 7. Qe1 {[%emt 0:00:26]} e5 {[%emt 0:00:25]} 8. e4 {[%emt 0:00:23]} dxe4 {[%emt 0:00:23]} 9. dxe4 {[%emt 0:00:21]} Bc5 {[%emt 0:00:56]} 10. Nbd2 {[%emt 0:00:31]} O-O {[%emt 0:00:22]} 11. a4 {[%emt 0:00:22]} Re8 {[%emt 0:00:33]} 12. Nc4 {[%emt 0:00:31]} Bf8 {[%emt 0:00:53]} 13. b4 {[%emt 0:02:48]} b5 {[%emt 0:01:37]} 14. Na5 {[%emt 0:00:31]} Qc7 {[%emt 0:01:23]} 15. c4 {[%emt 0:01:57]} c5 {[%emt 0:01:19]} 16. cxb5 {[%emt 0:01:21]} cxb4 {[%emt 0:00:24]} 17. Nc6 {[%emt 0:00:24]} Nc5 {[%emt 0:00:46]} 18. Nxb4 {[%emt 0:04:35]} Nb3 {[%emt 0:05:51]} 19. Rb1 {[%emt 0:00:48]} Qc4 {[%emt 0:00:23]} 20. Nc6 {[%emt 0:02:16]} Qxa4 {[%emt 0:02:46]} 21. Nfxe5 {[%emt 0:01:19]} Bd6 {[%emt 0:02:06]} 22. f4 {[%emt 0:00:48]} Nxc1 {[%emt 0:02:42]} 23. Rxc1 {[%emt 0:01:10]} Bg6 {[%emt 0:00:30]} 24. Nxg6 {[%emt 0:00:32]} hxg6 {[%emt 0:00:21]} 25. e5 {[%emt 0:00:21]} Nh5 {[%emt 0:00:54]} 26. Qd1 {[%emt 0:00:53]} Ba3 {[%emt 0:00:31]} 27. Qxa4 {[%emt 0:00:23]} 1-0

[Event "EWIRCC 2019"]
[Site "Monte-Carlo"]
[Date "2019.11.30"]
[Round "5.8"]
[White "Ovod, Evgenija"]
[Black "Sebag, Marie"]
[Result "0-1"]
[ECO "B22"]
[WhiteElo "2347"]
[BlackElo "2443"]
[Annotator "NA RC"]
[PlyCount "146"]
[EventDate "2019.11.28"]
[EventType "swiss"]
[EventCountry "MNC"]
[SourceTitle "playchess.com"]
[Source "ChessBase"]
[SourceQuality "1"]
[TimeControl "5400+30"]

1. e4 {[%emt 1:15:11]} c5 {[%emt 1:15:13]} 2. c3 {[%emt 0:00:22]} Nf6 {[%emt 0:00:25]} 3. e5 {[%emt 0:00:22]} Nd5 {[%emt 0:00:21]} 4. d4 {[%emt 0:00:23]} cxd4 {[%emt 0:00:29]} 5. Qxd4 {[%emt 0:00:22]} e6 {[%emt 0:00:35]} 6. Nf3 {[%emt 0:00:22]} Nc6 {[%emt 0:00:31]} 7. Qe4 {[%emt 0:00:22]} d6 {[%emt 0:00:35]} 8. Nbd2 {[%emt 0:00:47]} a6 {[%emt 0:02:13]} 9. Nc4 {[%emt 0:02:07]} dxe5 {[%emt 0:00:32]} 10. Ncxe5 {[%emt 0:00:46]} Nxe5 {[%emt 0:00:34]} 11. Nxe5 {[%emt 0:00:23]} Bd6 {[%emt 0:00:31]} 12. Nc4 {[%emt 0:02:39]} Be7 {[%emt 0:01:43]} 13. Bd3 {[%emt 0:00:37]} Qc7 {[%emt 0:02:02]} 14. O-O {[%emt 0:02:01]} b5 {[%emt 0:00:26]} 15. Ne3 {[%emt 0:00:31]} Bb7 {[%emt 0:00:27]} 16. Nxd5 {[%emt 0:00:38]} Bxd5 {[%emt 0:00:23]} 17. Qg4 {[%emt 0:00:25]} O-O {[%emt 0:01:02]} 18. Bf4 {[%emt 0:02:52]} Qb7 {[%emt 0:01:21]} 19. Be5 {[%emt 0:01:31]} f6 {[%emt 0:01:33]} 20. Qh3 {[%emt 0:00:55]} g6 {[%emt 0:00:52]} 21. Bf4 {[%emt 0:00:50]} e5 {[%emt 0:01:26]} 22. Bh6 {[%emt 0:00:22]} Rfd8 {[%emt 0:00:45]} 23. Qg3 {[%emt 0:01:29]} Be4 {[%emt 0:01:47]} 24. Bxe4 {[%emt 0:00:42]} Qxe4 {[%emt 0:00:22]} 25. Rae1 {[%emt 0:01:14]} Qf5 {[%emt 0:01:18]} 26. Be3 {[%emt 0:01:06]} Rd3 {[%emt 0:00:35]} 27. f4 {[%emt 0:01:09]} Bc5 {[%emt 0:04:10]} 28. fxe5 {[%emt 0:01:28]} Rxe3 {[%emt 0:00:21]} 29. Rxe3 {[%emt 0:00:23]} Qxe5 {[%emt 0:00:25]} 30. Qxe5 {[%emt 0:00:53]} fxe5 {[%emt 0:00:20]} 31. Rfe1 {[%emt 0:00:22]} Kf7 {[%emt 0:00:24]} 32. Kf2 {[%emt 0:01:05]} Ke6 {[%emt 0:00:21]} 33. Rd1 {[%emt 0:01:06]} Rf8+ {[%emt 0:00:56]} 34. Ke2 {[%emt 0:00:21]} Bxe3 {[%emt 0:00:21]} 35. Kxe3 {[%emt 0:00:21]} h5 {[%emt 0:00:24]} 36. h4 {[%emt 0:00:53]} Rc8 {[%emt 0:00:43]} 37. g3 {[%emt 0:00:46]} a5 {[%emt 0:00:36]} 38. Rf1 {[%emt 0:00:36]} b4 {[%emt 0:00:29]} 39. cxb4 {[%emt 0:00:24]} axb4 {[%emt 0:00:21]} 40. Rf2 {[%emt 0:00:23]} Ra8 {[%emt 0:00:36]} 41. b3 {[%emt 0:00:23]} Rc8 {[%emt 0:00:21]} 42. Ke4 {[%emt 0:00:25]} Rc3 {[%emt 0:00:32]} 43. Rg2 {[%emt 0:00:24]} Rc1 {[%emt 0:00:45]} 44. g4 {[%emt 0:00:26]} Rh1 {[%emt 0:00:32]} 45. gxh5 {[%emt 0:00:34]} Rxh4+ {[%emt 0:00:22]} 46. Ke3 {[%emt 0:00:28]} gxh5 {[%emt 0:00:21]} 47. Rg6+ {[%emt 0:00:24]} Kd5 {[%emt 0:00:21]} 48. Rg8 {[%emt 0:00:27]} Rh3+ {[%emt 0:00:56]} 49. Ke2 {[%emt 0:00:29]} Ke4 {[%emt 0:00:26]} 50. Rb8 {[%emt 0:00:26]} Rh2+ {[%emt 0:00:21]} 51. Kf1 {[%emt 0:00:27]} Kf3 {[%emt 0:00:29]} 52. Rf8+ {[%emt 0:00:48]} Ke3 {[%emt 0:00:21]} 53. Rb8 {[%emt 0:00:40]} e4 {[%emt 0:00:47]} 54. Rxb4 {[%emt 0:00:24]} Kf3 {[%emt 0:00:31]} 55. Kg1 {[%emt 0:00:36]} Rxa2 {[%emt 0:00:29]} 56. Rb8 {[%emt 0:00:25]} Ra1+ {[%emt 0:00:34]} 57. Kh2 e3 58. Rf8+ {[%emt 0:00:54]} Ke2 {[%emt 0:00:42]} 59. Rh8 {[%emt 0:00:33]} Ra5 {[%emt 0:00:45]} 60. b4 {[%emt 0:00:29]} Re5 {[%emt 0:00:35]} 61. Rd8 {[%emt 0:00:47]} Rg5 {[%emt 0:01:12]} 62. Re8 {[%emt 0:00:35]} Kf2 {[%emt 0:00:23]} 63. Rf8+ {[%emt 0:00:25]} Ke1 {[%emt 0:00:21]} 64. Re8 {[%emt 0:00:26]} e2 {[%emt 0:00:21]} 65. Rd8 {[%emt 0:00:24]} Kf2 {[%emt 0:00:58]} 66. Rf8+ {[%emt 0:00:24]} Ke3 {[%emt 0:00:22]} 67. Re8+ {[%emt 0:00:25]} Kf3 {[%emt 0:00:21]} 68. Kh3 {[%emt 0:00:42]} Rg1 {[%emt 0:00:36]} 69. Rf8+ {[%emt 0:00:27]} Ke3 {[%emt 0:00:21]} 70. Re8+ {[%emt 0:00:23]} Kd3 {[%emt 0:00:24]} 71. b5 {[%emt 0:00:33]} e1=Q {[%emt 0:00:27]} 72. Rxe1 {[%emt 0:00:24]} Rxe1 {[%emt 0:00:21]} 73. b6 {[%emt 0:00:20]} Rb1 {[%emt 0:00:22]} 0-1